Cogmind - Beta 13 @@@ ROGUE MODE // 2024.06.05 @ 20:08:11 Player: Johge Result: Destroyed by Y-45 Defender with Beam Rifle Performance ------------- Evolutions (2) 1000 Regions Visited (4) 800 Robots Destroyed (26) 130 Value Destroyed (743) 743 Prototype IDs (1) 20 Alien Tech Used (0) 0 Bonus (125) 125 TOTAL SCORE: 2818 Bonus ------- Follower Combat Kills 125 Cogmind --------- Core Integrity 0/550 Matter 280/300 Energy 242/300 System Corruption 0% Temperature Cool (9) Movement Core (300) Ox5 Location -8/Materials Parts ------- > --- POWER (1) -------- Enhanced Nuclear Core > --- PROPULSION (4) --- (None) > --- UTILITY (4) ------ Hardened Medium Armor Plating > --- WEAPON (2) ------- (None) > --- INVENTORY (5) ---- Light Nuclear Core Coolant Injector Improved Signal Interpreter Advanced Terrain Scan Processor Peak State ------------ > --- POWER ------------ Enhanced Nuclear Core > --- PROPULSION ------- Aluminum Leg Aluminum Leg Aluminum Leg Carbon-fiber Leg > --- UTILITY ---------- Improved Heat Sink Large Storage Unit Trap Scanner Hardened Medium Armor Plating > --- WEAPON ----------- Spread Laser Heavy Particle Cannon > --- INVENTORY -------- Light Deuterium Engine Light Nuclear Core Enhanced Nuclear Core Aluminum Leg Coolant Injector Improved Sensor Array Improved Signal Interpreter Advanced Terrain Scan Processor Seismic Detector Mini Grenade Launcher Mining Laser [Rating: 29] Favorites ----------- Power Ion Engine Engine Ion Engine Power Core Light Nuclear Core Propulsion Aluminum Leg Leg Aluminum Leg Utility Small Storage Unit Device Improved Terrain Scanner Storage Small Storage Unit Processor Terrain Scan Processor Protection Hardened Medium Armor Plating Weapon Small Laser Energy Gun Small Laser Energy Cannon Heavy Particle Cannon Ballistic Gun Assault Rifle Launcher Mini Grenade Launcher Special Weapon Mining Laser Build | -11 -10 -10 -9 -8 ------- Run | Yrd Mat Min Mat Mat Slots Evolved 4 | . . . 2 2 Power . | . . . . . Propulsion 2 | . . . 2 . Utility 2 | . . . . 2 Weapon . | . . . . . Parts Attached 37 | 6 2 . 7 22 Power 7 | 1 1 . 1 4 Engine 3 | 1 1 . 1 . Core 4 | . . . . 4 Reactor . | . . . . . Propulsion 11 | 2 . . 5 4 Treads . | . . . . . Leg 11 | 2 . . 5 4 Wheel . | . . . . . Hover . | . . . . . Flight . | . . . . . Utility 9 | 2 . . . 7 Device 4 | 1 . . . 3 Storage 2 | 1 . . . 1 Processor 1 | . . . . 1 Hackware . | . . . . . Protection 2 | . . . . 2 Artifact . | . . . . . Weapon 10 | 1 1 . 1 7 Energy Gun 4 | . 1 . 1 2 Energy Cannon 2 | . . . . 2 Ballistic Gun 1 | 1 . . . . Ballistic Cannon . | . . . . . Launcher 2 | . . . . 2 Special Weapon 1 | . . . . 1 Impact Weapon . | . . . . . Slashing Weapon . | . . . . . Piercing Weapon . | . . . . . Special Melee Weapon . | . . . . . Unidentified Prototypes 1 | . . . . 1 Parts Lost 18 | . . . 1 17 Power 3 | . . . 1 2 Propulsion 6 | . . . . 6 Utility 5 | . . . . 5 Weapon 4 | . . . . 4 Highest Loss Streak 11 | . . . 1 11 To Critical Strikes 1 | . . . . 1 Average Slot Usage (%) 92 | . 100 100 89 88 Engine 6 | . 14 14 8 1 Core 3 | . . . . 7 Leg 31 | . 28 28 36 31 Device 13 | . 14 14 11 15 Storage 10 | . 14 14 11 8 Processor 2 | . . . . 5 Protection 1 | . . . . 2 Energy Gun 13 | . 14 14 17 10 Energy Cannon 2 | . . . . 4 Ballistic Gun 5 | . 14 14 4 . Naked Turns 3 | . . . . 3 Heaviest Build 48 | 11 14 14 15 48 Greatest Support 45 | 20 20 20 40 45 Greatest Overweight (x) 5 | . . . . 5 Average Overweight (x) . | . . . . . Largest Inventory Capacity 15 | 8 8 8 8 15 Average Capacity 9 | 7 8 8 8 11 Most Carried 11 | 5 5 6 8 11 Average Carried 6 | 1 2 4 6 8 Final Capacity 8 | 8 8 8 8 5 Final Carried 8 | 3 4 6 8 4 Class Distribution -------------------- 65% | Mutant 34% | Scavenger-Mutant Dominant Class ---------------- Mutant | -10/Materials Mutant | -10/Mines Mutant | -9/Materials Scavenger-Mutant | -8/Materials Resources | -11 -10 -10 -9 -8 ----------- Run | Yrd Mat Min Mat Mat Matter Collected 588 | 246 26 27 63 226 Remotely . | . . . . . Salvage Created 780 | 21 41 47 47 624 Parts 46 | 4 2 7 5 28 Haulers Intercepted . | . . . . . Recyclers Shooed 1 | . . . . 1 Parts Field Recycled . | . . . . . Retrieved Matter . | . . . . . Parts Self-Destructed . | . . . . . Prevented . | . . . . . Kills | -11 -10 -10 -9 -8 ------- Run | Yrd Mat Min Mat Mat Combat Hostiles Destroyed 20 | . 1 3 3 13 Guns 17 | . 1 3 3 10 Cannons 2 | . . . . 2 AOE 1 | . . . . 1 Classes Destroyed 9 | 1 1 1 . 6 Worker 1 | . . . . 1 Builder 1 | . . . . 1 Tunneler 2 | 1 . . . 1 Recycler 1 | . . . . 1 Watcher 1 | . . . . 1 Swarmer 6 | . . 3 3 . Grunt 12 | . 1 . . 11 Brawler 1 | . . . . 1 Sentry 1 | . . . . 1 Best Kill Streak 6 | 1 1 3 3 6 Combat Bots Only 5 | . 1 3 3 5 Max Kills in Single Turn 2 | 1 1 1 1 2 Gunslinging . | . . . . . Exploded 1 | . . . . 1 Melee . | . . . . . Uniques/NPCs Destroyed . | . . . . . Combat | -11 -10 -10 -9 -8 -------- Run | Yrd Mat Min Mat Mat Hostile Shots Fired 192 | . 1 28 28 135 Missed 47 | . 1 5 6 35 Damage Taken 2550 | . . 178 271 2101 Core 659 | . . 39 64 556 Absorbed by Shields . | . . . . . Core Remaining (%) 89 | 100 . 84 84 . Volleys Fired 83 | 1 1 9 9 63 Largest 2 | 1 2 2 2 2 Hottest 140 | 20 60 60 105 140 Shots Fired 153 | 1 2 18 17 115 Gun 118 | 1 2 18 17 80 Cannon 31 | . . . . 31 Launcher 4 | . . . . 4 Special . | . . . . . Kinetic 17 | 1 1 9 6 . Thermal 132 | . 1 9 11 111 Explosive 4 | . . . . 4 Electromagnetic . | . . . . . Robot Hit Streak 11 | 1 3 8 9 11 Robot Miss Streak 10 | . . 3 6 10 Penetration Max . | . . . . . Secondary Targets 5 | . . . 1 4 Max Gunslinging Chain 1 | . . . 1 1 Shots Hit Robots 120 | 1 2 14 12 91 Core Hits 100 | 1 2 3 5 89 Critical Kills . | . . . . . Critical Parts Destroyed . | . . . . . Critical Strikes . | . . . . . Melee Attacks . | . . . . . Impact . | . . . . . Slashing . | . . . . . Piercing . | . . . . . Sneak Attacks . | . . . . . Combat Hostiles . | . . . . . Follow-up Attacks . | . . . . . Damage Inflicted 2013 | 10 34 183 129 1657 Guns 1302 | 10 23 179 129 961 Cannons 525 | . . . . 525 Explosions 171 | . . . . 171 Melee . | . . . . . Ramming 15 | . 11 4 . . Kinetic 173 | 10 12 102 49 . Thermal 1654 | . 11 77 80 1486 Explosive 171 | . . . . 171 Electromagnetic . | . . . . . Impact . | . . . . . Slashing . | . . . . . Piercing . | . . . . . Highest Corruption . | . . . . . Average Corruption . | . . . . . Corruption Purged . | . . . . . Corruption Blocked . | . . . . . Overload Shots . | . . . . . Overflow Damage 15 | . . . . 15 Projectiles 5 | . . . . 5 Explosions 10 | . . . . 10 Melee . | . . . . . Knockbacks . | . . . . . Impact . | . . . . . Kinetic . | . . . . . Secondary . | . . . . . Self-Inflicted Damage 122 | . . . . 122 Shots 3 | . . . . 3 Rammed . | . . . . . Targets Rammed 7 | . 3 3 . 1 Kicked 7 | . 3 3 . 1 Crushed . | . . . . . Highest Temperature 553 | . . . 45 553 Average Temperature 208 | . . . 19 217 Received Heat Transfer 849 | . . . 75 774 Effects 23 | . . . . 23 Shutdowns 7 | . . . . 7 Energy Bleed 1 | . . . . 1 Interference 5 | . . . . 5 Short Circuit 2 | . . . . 2 Damage (minor) 4 | . . . . 4 Damage (major) 3 | . . . . 3 Damage (core) 1 | . . . . 1 Siege Activations . | . . . . . Robots Corrupted . | . . . . . Combat Hostiles . | . . . . . Parts Fried . | . . . . . Impact Corruptions . | . . . . . Robots Melted . | . . . . . Combat Hostiles . | . . . . . Parts Melted 6 | . . 1 . 5 Heat Transferred 2635 | . 25 175 170 2265 Parts Sabotaged . | . . . . . Parts Stolen . | . . . . . Parts Stripped . | . . . . . Power Chain Reactions . | . . . . . Alert | -11 -10 -10 -9 -8 ------- Run | Yrd Mat Min Mat Mat Peak Influence 326 | 5 42 86 231 326 Initial 33 | . 3 16 33 33 Average 108 | . 23 22 93 178 Maximum Alert Level 1 | . . . 1 1 Low Security (%) 80 | 100 100 100 91 61 Level 1 19 | . . . 8 38 Level 2 . | . . . . . Level 3 . | . . . . . Level 4 . | . . . . . Level 5 . | . . . . . High Security . | . . . . . Max Security . | . . . . . Squads Dispatched 5 | . . . 3 2 Investigation 2 | . . . 1 1 Extermination . | . . . . . Reinforcement 3 | . . . 2 1 Assault . | . . . . . Garrison . | . . . . . Intercept . | . . . . . Searches Triggered . | . . . . . Construction Impeded . | . . . . . Haulers Reinforced . | . . . . . Active Scanning Responses . | . . . . . Cargo Convoy Interrupts . | . . . . . Stealth | -11 -10 -10 -9 -8 --------- Run | Yrd Mat Min Mat Mat Distress Signals 5 | . 1 . 3 1 Communications Jammed . | . . . . . Distress Signals . | . . . . . Times Spotted 47 | . 3 3 10 31 Peak Tracking Total 6 | . 3 3 5 6 Tactical Retreats 2 | . . . . 2 Traps | -11 -10 -10 -9 -8 ------- Run | Yrd Mat Min Mat Mat Traps Triggered . | . . . . . Indirectly . | . . . . . Trap Hack Attempts . | . . . . . Triggered . | . . . . . Disarmed . | . . . . . Reprogrammed . | . . . . . Reused . | . . . . . Traps Extracted . | . . . . . Installed . | . . . . . Triggered . | . . . . . Machines | -11 -10 -10 -9 -8 ---------- Run | Yrd Mat Min Mat Mat Machines Disabled . | . . . . . Max in Single Turn . | . . . . . Machines Repaired . | . . . . . Machines Dismantled . | . . . . . Machines Sabotaged . | . . . . . Overloaded Fab Kills . | . . . . . Hacking | -11 -10 -10 -9 -8 --------- Run | Yrd Mat Min Mat Mat Machines Accessed 7 | . 2 . 3 2 Terminals 7 | . 2 . 3 2 Fabricators . | . . . . . Repair Stations . | . . . . . Recycling Units . | . . . . . Scanalyzers . | . . . . . Garrison Access . | . . . . . Total Hacks 17 | . 4 . 8 5 Successful 7 | . 2 . 3 2 Failed 10 | . 2 . 5 3 Catastrophic 3 | . . . 3 . Database Lockouts . | . . . . . Manual 7 | . 1 . 6 . Terminals 17 | . 4 . 8 5 Fabricators . | . . . . . Repair Stations . | . . . . . Recycling Units . | . . . . . Scanalyzers . | . . . . . Garrison Access . | . . . . . Terminal Hacks 7 | . 2 . 3 2 Alert Level 2 | . . . 1 1 Unreport Threat 1 | . . . 1 . Locate Traps 2 | . 1 . 1 . Zone Layout 2 | . 1 . . 1 Fabricator Hacks . | . . . . . Repair Station Hacks . | . . . . . Recycling Unit Hacks . | . . . . . Scanalyzer . | . . . . . Garrison Access Hacks . | . . . . . Unauthorized Hacks . | . . . . . Terminals . | . . . . . Fabricators . | . . . . . Repair Stations . | . . . . . Recycling Units . | . . . . . Scanalyzers . | . . . . . Garrison Access . | . . . . . Data Cores Recovered . | . . . . . Used . | . . . . . Hacking Detections 4 | . 1 . 1 2 Full Trace Events 2 | . . . 1 1 Feedback Events . | . . . . . Feedback Blocked . | . . . . . Robot Schematics Acquired . | . . . . . Robots Built . | . . . . . Authchips . | . . . . . Time . | . . . . . Total Robot Build Rating . | . . . . . Part Schematics Acquired . | . . . . . Parts Built . | . . . . . Authchips . | . . . . . Time . | . . . . . Total Part Build Rating . | . . . . . Parts Repaired . | . . . . . Time . | . . . . . Parts Recycled . | . . . . . Recycled Matter . | . . . . . Retrieved Matter . | . . . . . Retrieved Components . | . . . . . Parts Scanalyzed . | . . . . . Part Schematics Acquired . | . . . . . Parts Damaged . | . . . . . Bothacking | -11 -10 -10 -9 -8 ------------ Run | Yrd Mat Min Mat Mat Used RIF Installer . | . . . . . Robots Hacked . | . . . . . Non-combat . | . . . . . Combat . | . . . . . Robot Hacks Applied . | . . . . . Relay Couplers Released . | . . . . . Fabnet Peak Effective % . | . . . . . Robots Rewired . | . . . . . Allies Hacked . | . . . . . Hacks Repelled . | . . . . . Allies | -11 -10 -10 -9 -8 -------- Run | Yrd Mat Min Mat Mat Total Allies 1 | . . 1 . . Largest Group 1 | . . 1 1 . Highest-Rated Group 31 | . . 31 31 . Highest-Rated Ally 31 | . . 31 31 . Total Orders . | . . . . . Ally Attacks 16 | . . . 16 . Total Damage 257 | . . . 257 . Kills 6 | . . . 6 . Allies Corrupted . | . . . . . Allies Melted . | . . . . . Intel | -11 -10 -10 -9 -8 ------- Run | Yrd Mat Min Mat Mat Robot Analysis Total . | . . . . . Derelict Logs Recovered . | . . . . . Drone Launches . | . . . . . Drone Recoveries . | . . . . . Exploration | -11 -10 -10 -9 -8 ------------- Run | Yrd Mat Min Mat Mat Turns Passed 1547 | 72 126 311 319 719 Spaces Moved 917 | 53 89 233 210 332 Core 19 | 11 . . . 8 Treads . | . . . . . Legs 898 | 42 89 233 210 324 Wheels . | . . . . . Hover . | . . . . . Flight . | . . . . . Fastest Speed 50 | 50 120 120 120 50 Average Speed 124 | 105 120 120 120 134 Slowest Speed 300 | 120 120 120 120 300 Overloaded Moves . | . . . . . Propulsion Burnouts . | . . . . . Robots Hopped . | . . . . . Cave-ins Triggered . | . . . . . Exploration Rate (%) 31 | 4 25 59 26 44 Regions Visited 4 Branch Regions 1 Pre-discovered Areas . | . . . . . Known Exits Taken . | . . . . . Unknown Exits Taken 4 | 1 1 1 1 . Scrap Searched . | . . . . . Spaces Dug . | . . . . . Terrain Destroyed 35 | . . . . 35 Melee . | . . . . . Projectile 9 | . . . . 9 AOE 26 | . . . . 26 Terrain Rammed . | . . . . . Walls Destroyed . | . . . . . Machines Disabled . | . . . . . Actions | -11 -10 -10 -9 -8 --------- Run | Yrd Mat Min Mat Mat Total 1173 | 68 106 246 263 490 Wait 73 | . 6 . 23 44 Move 913 | 52 88 232 209 332 Hop . | . . . . . Pick Up 44 | 9 4 2 10 19 Fast Attach . | . . . . . Attach 22 | 6 1 . 3 12 Detach . | . . . . . Swap 15 | . 1 . 4 10 Drop 16 | . 2 . 5 9 Fire 83 | 1 1 9 9 63 Melee . | . . . . . Ram . | . . . . . Kick 7 | . 3 3 . 1 Crush . | . . . . . Escape Stasis . | . . . . . Rewire . | . . . . . Trap . | . . . . . Miscellaneous . | . . . . . Route ------- -11/Scrapyard -10/Materials -10/Mines -9/Materials -8/Materials (discovered 1 exit: [*Sto]) History --------- Turn | Location | Event 7 | -11/Scrapyard | Discovered new exit (range 15) 73 | -11/Scrapyard | Entered Materials 178 | -10/Materials | Discovered new exit (range 14) 199 | -10/Materials | Entered Mines 206 | -10/Mines | Received a Rocket Launcher from a helpful Derelict 300 | -10/Mines | Build established: Mutant 462 | -10/Mines | Discovered new exit (range 14) 497 | -10/Mines | Received a Mining Laser from a helpful Derelict 510 | -10/Mines | Entered Materials 510 | -9/Materials | Accompanied by 1 ally 510 | -9/Materials | Evolved 2 slots: Propulsion x2 808 | -9/Materials | Discovered new exit (range 5) 829 | -9/Materials | Entered another Materials area 829 | -8/Materials | Evolved 2 slots: Utility x2 1112 | -8/Materials | Build established: Scavenger-Mutant 1450 | -8/Materials | Core integrity fell below 50% 1470 | -8/Materials | Core integrity fell below 20% 1498 | -8/Materials | Lost 11 parts (4n3u4w) 1522 | -8/Materials | Discovered new exit (range 16) 1548 | -8/Materials | Destroyed by Y-45 Defender with Beam Rifle Last Messages --------------- U-05 Engineer builds a Wall. Acquired 12 matter. Y-45 Defender destroyed. Acquired 8 matter. Imp. Heat Sink destroyed. Knocked back. U-05 Engineer lays Concrete. Acquired 5 matter. Mining Laser destroyed. U-05 Engineer builds a Wall. Knocked back. U-05 Engineer lays Concrete. U-05 Engineer builds a Door. U-05 Engineer lays Concrete. EXIT=FOUND Enh. Nuclear Core destroyed. Lrg. Storage Unit destroyed. Carbon-fiber Leg destroyed. Acquired Hrd. Medium Armor Plating. Critical hit (Burn: +37). Map ----- +----------------------------------------------------+ | | | | | | | | | | | | | | | | | | | | | | | ?????????????????????????????????????????????????? | | ??????????????????????????????#######????????????? | | ?????????????#######????????? ####?????????? | | ?????????????# ]########## ?????????? | | ??????######## ????????? | | ??????# ! < ????????? | | ###???# ###### !* ????????? | | #???# #????# #######Y## [ ????????? | | #???# #????### ###?# #?????? ##???????????? | | ##??# #?######+#???# """ #????????????????????? | | #??# #?# ??# """ #????????????????????? | | #??# #?# """ #?# """ #????????????????"??"? | | #??# #?# """ ### #????????????????????? | | [=##### ### """ ## Y #??????????????????? ? | | =%= # ### @ #??????????? ???? ?"?? | | ! + #?# #????????????? ??????? | | % % % " "Y" #?#! !! #????????????????"??"" | | ###### # """ #?# !! #??????????#????????? | | !#?# # #?# ! #??????????? ??? ? ? | | #?# ##########?# #?????????????#??##### | | #?# #??????????# [ #??????????????#?# | | #?# #??????????########?????##??????##?# "" | | #?# #####????????#?????#???????????????# "" | | #?# # ????????????????????????#????## "" | | +###?# + ????????????????????##????#???# | | #???# # ????????#?????????????#????#??# | | #???# ##### ?????#?###???#?????#???????######## | | #???# #???# ??? ??##?##?#?#?????????#??## | | #???# #???# ????????????#???#???#?#????# "" | | ##### #???# ????????#????############## "" | | #???# ??????#?????#???????????# ! "" | | #??## ??########??####?#?????# | | ##??#####+##??#?###########?#####???# "" | | #???#??# #??### ##?#?####?# "" | | ######## #?##?# """ #?####??### "" | | ###?## """"" #?##?##??## | | #### ###### """"" #?#?#?########### | | #??# #?#?## """"" #??##?########?#? | | ######## #### #?#?## """ ###?#?########### | +----------------------------------------------------+ Best States ------------- Heat Dissipation 45 Energy Generation 17 Energy Capacity 300 Matter Stores 300 Matter Capacity 300 Sight Range 16 Terrain Scan Range 16 Terrain Scan Density 85 Armor Coverage 225 Evasion (%) 55 Item Schematics ----------------- None Robot Schematics ------------------ None Fabricated ------------ Nothing Alien Tech Used ----------------- None Achievements -------------- None Challenges ------------ None Game ------ Seed SpikedExplosiveBuckler Manual? 0 Play Time 00:24:24 Cumulative 16.1 hours Start 2024.06.05 @ 19:46:08 End 2024.06.05 @ 20:08:11 Sessions 1 Manual Loads 0 Difficulty Rogue Special Mode None Game No. 29 Rogue 29 Adventurer 0 Explorer 0 Win Type - Total 0 Types 0/0/0/0/0/0/0/0/0 Lore% 8 Gallery% 19 Achievement% 15 Wizard Run 0 Options --------- Layout 1 ASCII 0 Keyboard 0 Movement Mouse Keybinds 0 Fullscreen 1 Font 24/Smallcaps Map View 50x35 Zoom Use 0% Tactical HUD 0 Map Filters NONE Filters NONE Steam 1 RUN: f28806d8-fdb1-4ebd-8b14-b0fdbfd74cf7